Cogmind - Beta 16 @@@ ROGUE MODE // 2026.01.10 @ 11:10:54 Player: Sunvar Result: Self-destructed Performance ------------- Evolutions (1) 500 Regions Visited (6) 1200 Robots Destroyed (44) 220 Value Destroyed (564) 564 Prototype IDs (24) 480 Alien Tech Used (0) 0 Bonus (434) 434 TOTAL SCORE: 3398 Bonus ------- Follower Combat Kills 166 Aligned with FarCom 300 Friendly Fire -32 Cogmind --------- Core Integrity 121/400 Matter 300/300 Energy 159/160 System Corruption 0% Temperature Cool (3) Movement Flying (34) Location -8/Mines Parts ------- > --- POWER (1) -------- Light Nuclear Core > --- PROPULSION (3) --- Flight Unit Improved Flight Unit Improved Flight Unit > --- UTILITY (3) ------ Seismic Detector Light Armor Plating > --- WEAPON (2) ------- Light Assault Rifle Mini Grenade Launcher > --- INVENTORY (5) ---- Ion Engine Light Ion Engine Flight Unit Light Armor Plating Autogun Peak State ------------ > --- POWER ------------ Improved Ion Engine > --- PROPULSION ------- Light Treads Light Treads Improved Flight Unit > --- UTILITY ---------- Large Storage Unit Seismic Detector Light Armor Plating > --- WEAPON ----------- Heavy Assault Rifle Autogun > --- INVENTORY -------- Ion Engine Light Treads Flexi-carbon Leg VTOL Module VTOL Module High-capacity Matter Pod Experimental Sensor Array Seismic Detector Light Armor Plating Light Armor Plating Light Armor Plating Light Armor Plating Particle Cannon Autogun Autogun [Rating: 17] Favorites ----------- Power Ion Engine Engine Ion Engine Power Core Light Nuclear Core Propulsion Light Treads Treads Light Treads Leg Aluminum Leg Flight Unit Improved Flight Unit Utility Seismic Detector Device Seismic Detector Storage Large Storage Unit Protection Hardened Light Armor Plating Weapon Autogun Energy Gun Small Laser Ballistic Gun Autogun Launcher Mini Grenade Launcher Impact Weapon Mace Build | -11 -10 -10 -9 -9 -9 -8 ------- Run | Yrd Mat Min Mat Min Exi Min Slots Evolved 2 | . . . 2 . . . Power . | . . . . . . . Propulsion 1 | . . . 1 . . . Utility 1 | . . . 1 . . . Weapon . | . . . . . . . Parts Attached 31 | 1 7 . 12 1 . 10 Power 3 | . . . 1 . . 2 Engine 2 | . . . 1 . . 1 Core 1 | . . . . . . 1 Reactor . | . . . . . . . Propulsion 12 | . 4 . 6 . . 2 Treads 7 | . 2 . 5 . . . Leg 2 | . 2 . . . . . Wheel . | . . . . . . . Hover . | . . . . . . . Flight 3 | . . . 1 . . 2 Utility 8 | 1 1 . 2 . . 4 Device 2 | 1 . . . . . 1 Storage 1 | . 1 . . . . . Processor . | . . . . . . . Hackware . | . . . . . . . Protection 5 | . . . 2 . . 3 Artifact . | . . . . . . . Weapon 8 | . 2 . 3 1 . 2 Energy Gun . | . . . . . . . Energy Cannon . | . . . . . . . Ballistic Gun 6 | . 2 . 2 . . 2 Ballistic Cannon . | . . . . . . . Launcher 1 | . . . . 1 . . Special Weapon . | . . . . . . . Impact Weapon 1 | . . . 1 . . . Slashing Weapon . | . . . . . . . Piercing Weapon . | . . . . . . . Special Melee Weapon . | . . . . . . . Unidentified Prototypes 1 | . . . 1 . . . Parts Lost 11 | . . . . . . 11 Power 1 | . . . . . . 1 Propulsion 3 | . . . . . . 3 Utility 5 | . . . . . . 5 Weapon 2 | . . . . . . 2 Highest Loss Streak 11 | . . . . . . 11 To Critical Strikes 1 | . . . . . . 1 Average Backups 13 | 6 12 15 14 15 15 7 Power 1 | 1 1 1 1 1 1 1 Propulsion 3 | 4 4 3 3 4 4 1 Utility 6 | . 4 8 7 7 7 3 Weapon 2 | 1 1 2 2 3 3 1 Tool/Special . | . . . . . . . Unused Backups 25 | 6 7 1 6 . . 5 Power 5 | 1 3 . . . . 1 Propulsion 10 | 2 3 1 3 . . 1 Utility 5 | 1 . . 1 . . 3 Weapon 5 | 2 1 . 2 . . . Tool/Special . | . . . . . . . Average Slot Usage (%) 97 | . 100 100 99 100 100 82 Engine 11 | . 14 14 11 11 11 4 Treads 26 | . 21 28 32 33 33 11 Leg 1 | . 6 . . . . . Flight 2 | . . . . . . 17 Device 12 | . 14 14 11 11 11 10 Storage 11 | . 14 14 11 11 11 4 Protection 5 | . . . 10 11 11 10 Ballistic Gun 22 | . 26 28 21 20 22 10 Launcher 1 | . . . . 1 . 7 Peak Build Rating 17 | 7 12 12 17 16 16 16 Average Rating 13 | 6 10 11 15 16 16 14 On Entrance 12 | 6 7 11 12 16 16 16 Avg Prop Armor Cover (%) . | . . . . . . . Naked Turns . | . . . . . . . Heaviest Build 39 | 13 32 32 39 39 39 39 Greatest Support 60 | 20 40 40 60 60 60 60 Greatest Overweight (x) . | . . . . . . . Average Overweight (x) . | . . . . . . . Largest Inventory Capacity 15 | 8 15 15 15 15 15 15 Average Capacity 13 | 8 13 15 15 15 15 8 Most Carried 15 | 7 15 15 15 15 15 15 Average Carried 13 | 6 12 14 14 15 15 7 Final Capacity 15 | 8 15 15 15 15 15 5 Final Carried 15 | 7 15 15 15 15 15 5 Class Distribution -------------------- 56% | Mutant 43% | Scavenger-Mutant Dominant Class ---------------- Mutant | -10/Materials Mutant | -10/Mines Scavenger-Mutant | -9/Materials Scavenger-Mutant | -9/Mines Scavenger-Mutant | -9/Exiles Scavenger-Mutant | -8/Mines Resources | -11 -10 -10 -9 -9 -9 -8 ----------- Run | Yrd Mat Min Mat Min Exi Min Matter Collected 1335 | 226 269 217 323 50 . 250 Remotely . | . . . . . . . Salvage Created 1499 | 171 343 205 465 3 27 285 Parts 95 | 14 21 10 29 4 . 17 Haulers Intercepted 3 | . 1 . 2 . . . Recyclers Shooed 5 | . 2 1 1 . . 1 Parts Field Recycled . | . . . . . . . Retrieved Matter . | . . . . . . . Parts Self-Destructed . | . . . . . . . Prevented . | . . . . . . . Parts Restored . | . . . . . . . Kills | -11 -10 -10 -9 -9 -9 -8 ------- Run | Yrd Mat Min Mat Min Exi Min Combat Hostiles Destroyed 20 | . 4 1 4 3 . 8 Guns 9 | . 4 1 4 . . . AOE 11 | . . . . 3 . 8 Classes Destroyed 10 | 2 5 1 1 . 1 . Worker 3 | . 2 1 . . . . Tunneler 4 | 4 . . . . . . Hauler 3 | . 1 . 2 . . . Recycler 10 | 1 2 3 2 . . 2 Watcher 3 | . 1 . 2 . . . Swarmer 13 | . 3 . . 3 . 7 Grunt 3 | . 1 . 2 . . . Sentry 2 | . . . 2 . . . Demolisher 1 | . . 1 . . . . Zionite 1 | . . . . . 1 . Best Kill Streak 4 | 2 3 2 4 3 . 4 Combat Bots Only 4 | . 3 1 3 3 . 4 Max Kills in Single Turn 4 | 1 2 1 1 2 1 4 Gunslinging 1 | . 1 . . . . . Exploded 4 | . . . . 2 . 4 Melee . | . . . . . . . Uniques/NPCs Destroyed 1 | . . . . . . 1 CL-ANK (-8/Mines) Combat | -11 -10 -10 -9 -9 -9 -8 -------- Run | Yrd Mat Min Mat Min Exi Min Hostile Shots Fired 63 | . 18 2 20 5 . 18 Missed 13 | . 6 . 5 . . 2 Hits 50 | . 12 2 15 5 . 16 Melee 11 | . . . . . . 11 Projectile 39 | . 12 2 15 5 . 5 AOE 2 | . . 2 . . . . Critical Strikes 12 | . . . . . . 12 Damage Taken 2038 | . 136 70 236 64 . 1532 Core 292 | . 13 . 15 . . 264 Absorbed by Shields . | . . . . . . . Core Remaining (%) 97 | 100 . 94 . . . . Volleys Fired 95 | 16 19 9 27 2 2 20 Largest 2 | 2 2 2 2 1 2 2 Hottest 60 | 60 46 46 46 30 46 53 Shots Fired 174 | 31 38 18 54 2 4 27 Gun 164 | 31 38 18 54 . 4 19 Cannon . | . . . . . . . Launcher 10 | . . . . 2 . 8 Special . | . . . . . . . Kinetic 149 | 16 38 18 54 . 4 19 Thermal 15 | 15 . . . . . . Explosive 10 | . . . . 2 . 8 Electromagnetic . | . . . . . . . Robot Hit Streak 14 | 5 3 7 9 . 1 14 Robot Miss Streak 3 | 3 2 1 2 1 2 2 Penetration Max . | . . . . . . . Secondary Targets 1 | . 1 . . . . . Max Gunslinging Chain 1 | . 1 . . . . . Shots Hit Robots 114 | 19 21 12 39 . 1 22 Core Hits 63 | 9 12 6 17 3 1 15 Critical Kills 1 | . . 1 . . . . Critical Parts Destroyed 1 | . . 1 . . . . Critical Strikes 2 | . . 2 . . . . Destroy 2 | . . 2 . . . . Melee Attacks 5 | . . . 5 . . . Impact 5 | . . . 5 . . . Slashing . | . . . . . . . Piercing . | . . . . . . . Sneak Attacks 1 | . . . 1 . . . Combat Hostiles . | . . . . . . . Follow-up Attacks . | . . . . . . . Damage Inflicted 2370 | 175 331 190 617 212 12 833 Guns 1442 | 175 331 190 568 . 12 166 Cannons . | . . . . . . . Explosions 879 | . . . . 212 . 667 Melee 49 | . . . 49 . . . Ramming . | . . . . . . . Kinetic 1330 | 63 331 190 568 . 12 166 Thermal 112 | 112 . . . . . . Explosive 879 | . . . . 212 . 667 Electromagnetic . | . . . . . . . Impact 49 | . . . 49 . . . Slashing . | . . . . . . . Piercing . | . . . . . . . Highest Corruption . | . . . . . . . Average Corruption . | . . . . . . . Corruption Purged . | . . . . . . . Corruption Blocked . | . . . . . . . Overload Shots . | . . . . . . . Overflow Damage 47 | . . . . 29 . 18 Projectiles . | . . . . . . . Explosions 47 | . . . . 29 . 18 Melee . | . . . . . . . Knockbacks . | . . . . . . . Impact . | . . . . . . . Kinetic . | . . . . . . . Secondary . | . . . . . . . Self-Inflicted Damage 333 | . . . . 33 . 300 Shots 8 | . . . . 1 . 7 Rammed . | . . . . . . . Targets Rammed . | . . . . . . . Kicked . | . . . . . . . Crushed . | . . . . . . . Highest Temperature 51 | 40 12 12 51 . . 10 Average Temperature 10 | 16 5 5 14 . . 5 Received Heat Transfer 105 | . . . 105 . . . Siege Activations . | . . . . . . . Martial Activations . | . . . . . . . Shielding Activations . | . . . . . . . Robots Disrupted . | . . . . . . . Combat Hostiles . | . . . . . . . Robots Corrupted . | . . . . . . . Combat Hostiles . | . . . . . . . Parts Fried . | . . . . . . . Impact Corruptions . | . . . . . . . Robots Melted . | . . . . . . . Combat Hostiles . | . . . . . . . Parts Melted . | . . . . . . . Heat Transferred 250 | 250 . . . . . . Parts Sabotaged . | . . . . . . . Parts Stolen . | . . . . . . . Parts Stripped . | . . . . . . . Power Chain Reactions . | . . . . . . . Alert | -11 -10 -10 -9 -9 -9 -8 ------- Run | Yrd Mat Min Mat Min Exi Min Maximum Alert Level . | . . . . . . . Low Security (%) 100 | 100 100 100 100 100 . 100 Level 1 . | . . . . . . . Level 2 . | . . . . . . . Level 3 . | . . . . . . . Level 4 . | . . . . . . . Level 5 . | . . . . . . . High Security . | . . . . . . . Max Security . | . . . . . . . Peak Influence 126 | 10 70 20 112 98 . 126 Initial 15 | . . 5 . 15 . . Average 25 | 1 18 1 41 80 . 50 Influence Increases 879 | 25 156 40 359 83 . 216 Destroy 0b10 Robot/C 500 | . 80 20 200 60 . 140 Destroy 0b10 Robot/NC 120 | 25 30 20 35 . . 10 Destroy Leader 102 | . 14 . 58 10 . 20 Allied During Kill 22 | . . . 22 . . . Successful Hack 11 | . . . 11 . . . Select Force Hacks 30 | . 30 . . . . . Disable Machine 45 | . . . 15 . . 30 Destroy Structure 34 | . 2 . 3 13 . 16 Lose Combat Pursuer 15 | . . . 15 . . . Influence Decreases 849 | 25 142 54 318 56 68 186 Entered New Map 103 | . . 9 . 26 68 . Time Decay 610 | 25 142 45 258 30 . 110 Lost Part 76 | . . . . . . 76 Lost Ally 60 | . . . 60 . . . Squads Dispatched 2 | . 1 . . . . 1 Investigation 1 | . 1 . . . . . Extermination . | . . . . . . . Reinforcement 1 | . . . . . . 1 Assault . | . . . . . . . Garrison . | . . . . . . . Intercept . | . . . . . . . Searches Triggered . | . . . . . . . Construction Impeded 1 | . . . . . . 1 Haulers Reinforced . | . . . . . . . Active Scanning Responses . | . . . . . . . Cargo Convoy Interrupts . | . . . . . . . Stealth | -11 -10 -10 -9 -9 -9 -8 --------- Run | Yrd Mat Min Mat Min Exi Min Distress Signals 4 | . . . 4 . . . Communications Jammed . | . . . . . . . Distress Signals . | . . . . . . . Times Spotted 32 | . 7 1 13 3 . 8 Peak Tracking Total 5 | . 3 1 5 3 2 5 Tactical Retreats 1 | . . . 1 . . . Traps | -11 -10 -10 -9 -9 -9 -8 ------- Run | Yrd Mat Min Mat Min Exi Min Traps Triggered 2 | . 1 . 1 . . . Indirectly . | . . . . . . . Trap Hack Attempts . | . . . . . . . Triggered . | . . . . . . . Disarmed . | . . . . . . . Reprogrammed . | . . . . . . . Reused . | . . . . . . . Traps Extracted . | . . . . . . . Installed . | . . . . . . . Triggered . | . . . . . . . Machines | -11 -10 -10 -9 -9 -9 -8 ---------- Run | Yrd Mat Min Mat Min Exi Min Machines Disabled 3 | . . . 1 . . 2 Max in Single Turn 2 | . . . . . . 2 Machines Repaired . | . . . . . . . Machines Dismantled . | . . . . . . . Machines Sabotaged . | . . . . . . . Overloaded Fab Kills . | . . . . . . . Hacking | -11 -10 -10 -9 -9 -9 -8 --------- Run | Yrd Mat Min Mat Min Exi Min Machines Accessed 8 | . 1 . 6 . 1 . Terminals 5 | . . . 5 . . . Fabricators . | . . . . . . . Repair Stations . | . . . . . . . Recycling Units 1 | . 1 . . . . . Scanalyzers 1 | . . . 1 . . . Garrison Access . | . . . . . . . Total Hacks 16 | . 1 . 14 . 1 . Successful 10 | . 1 . 8 . 1 . Failed 6 | . . . 6 . . . Catastrophic 2 | . . . 2 . . . Database Lockouts . | . . . . . . . Manual 11 | . 1 . 9 . 1 . Terminals 11 | . . . 11 . . . Fabricators . | . . . . . . . Repair Stations . | . . . . . . . Recycling Units 1 | . 1 . . . . . Scanalyzers 3 | . . . 3 . . . Garrison Access . | . . . . . . . Terminal Hacks 3 | . . . 2 . 1 . Level Access Points 1 | . . . 1 . . . Branch Access Points 1 | . . . 1 . . . Proto ID Catalog 1 | . . . . . 1 . Fabricator Hacks . | . . . . . . . Repair Station Hacks . | . . . . . . . Recycling Unit Hacks . | . . . . . . . Scanalyzer 3 | . . . 3 . . . Retrieve Study 3 | . . . 3 . . . Garrison Access Hacks . | . . . . . . . Unauthorized Hacks 4 | . 1 . 3 . . . Terminals 3 | . . . 3 . . . Botnet 1 | . . . 1 . . . Skim 2 | . . . 2 . . . Fabricators . | . . . . . . . Repair Stations . | . . . . . . . Recycling Units 1 | . 1 . . . . . Tunnel 1 | . 1 . . . . . Scanalyzers . | . . . . . . . Garrison Access . | . . . . . . . Data Cores Recovered 1 | . . . 1 . . . Used . | . . . . . . . Hacking Detections 5 | . . . 5 . . . Full Trace Events 1 | . . . 1 . . . Feedback Events . | . . . . . . . Feedback Blocked . | . . . . . . . Robot Schematics Acquired . | . . . . . . . Robots Built . | . . . . . . . Authchips . | . . . . . . . Time . | . . . . . . . Total Robot Build Rating . | . . . . . . . Part Schematics Acquired . | . . . . . . . Parts Built . | . . . . . . . Authchips . | . . . . . . . Time . | . . . . . . . Total Part Build Rating . | . . . . . . . Part Studies Acquired 3 | . . . 3 . . . Parts Repaired . | . . . . . . . Time . | . . . . . . . Parts Recycled . | . . . . . . . Recycled Matter . | . . . . . . . Retrieved Matter . | . . . . . . . Retrieved Components . | . . . . . . . Parts Scanalyzed . | . . . . . . . Part Schematics Acquired . | . . . . . . . Parts Damaged . | . . . . . . . Bothacking | -11 -10 -10 -9 -9 -9 -8 ------------ Run | Yrd Mat Min Mat Min Exi Min Used RIF Installer . | . . . . . . . Robots Hacked . | . . . . . . . Non-combat . | . . . . . . . Combat . | . . . . . . . Robot Hacks Applied . | . . . . . . . Relay Couplers Released . | . . . . . . . Fabnet Peak Effective % . | . . . . . . . Robots Rewired . | . . . . . . . Allies Hacked . | . . . . . . . Hacks Repelled . | . . . . . . . Allies | -11 -10 -10 -9 -9 -9 -8 -------- Run | Yrd Mat Min Mat Min Exi Min Total Allies 3 | . . 3 . . . . Largest Group 3 | . . 3 3 . . . Highest-Rated Group 40 | . . 40 40 . . . Highest-Rated Ally 16 | . . 16 16 . . . Total Orders . | . . . . . . . Ally Attacks 44 | . . . 44 . . . Total Damage 417 | . . . 417 . . . Kills 7 | . . . 7 . . . Allies Corrupted . | . . . . . . . Allies Melted . | . . . . . . . Intel | -11 -10 -10 -9 -9 -9 -8 ------- Run | Yrd Mat Min Mat Min Exi Min Active Infowar (turns) 2803 | 55 443 779 793 70 341 322 Seismic 2803 | 55 443 779 793 70 341 322 Robot Analysis Total . | . . . . . . . Derelict Logs Recovered 3 | . . 2 . 1 . . Drone Launches . | . . . . . . . Drone Recoveries . | . . . . . . . Exploration | -11 -10 -10 -9 -9 -9 -8 ------------- Run | Yrd Mat Min Mat Min Exi Min Turns Passed 2879 | 117 443 779 793 70 341 336 Spaces Moved 1623 | 49 234 217 388 40 209 486 Core . | . . . . . . . Treads 1070 | . 175 217 388 40 209 41 Legs 108 | 49 59 . . . . . Wheels . | . . . . . . . Hover . | . . . . . . . Flight 445 | . . . . . . 445 Fastest Speed 34 | 120 120 160 160 160 160 34 Average Speed 123 | 120 149 160 160 160 160 45 Slowest Speed 160 | 120 160 160 160 160 160 160 Overloaded Moves . | . . . . . . . Propulsion Burnouts . | . . . . . . . Robots Hopped 5 | . . . . . . 5 Potential Cave-ins . | . . . . . . . Cave-ins Triggered . | . . . . . . . Exploration Rate (%) 41 | 4 41 49 38 12 61 86 Regions Visited 6 Branch Regions 4 Pre-discovered Areas 2 | . 1 1 . . . . Known Exits Taken 1 | . . . 1 . . . Unknown Exits Taken 5 | 1 1 1 . 1 1 . Scrap Searched 3 | . . 1 . 1 . 1 Spaces Dug 12 | . . . 3 9 . . Terrain Destroyed 42 | . . . 3 18 . 21 Melee 3 | . . . 3 . . . Projectile . | . . . . . . . AOE 39 | . . . . 18 . 21 Terrain Rammed . | . . . . . . . Walls Destroyed . | . . . . . . . Machines Disabled . | . . . . . . . Actions | -11 -10 -10 -9 -9 -9 -8 --------- Run | Yrd Mat Min Mat Min Exi Min Total 2353 | 79 303 638 510 43 212 568 Wait 532 | 13 15 409 47 . 2 46 Move 1607 | 48 233 216 387 39 208 476 Hop 5 | . . . . . . 5 Pick Up 32 | 1 16 2 10 . . 3 Fast Attach 7 | 1 1 . 1 . . 4 Attach 14 | . 2 . 3 . . 9 Detach 4 | . . . 1 . . 3 Swap 19 | . 4 . 11 2 . 2 Drop 33 | . 13 2 18 . . . Fire 95 | 16 19 9 27 2 2 20 Melee 5 | . . . 5 . . . Ram . | . . . . . . . Kick . | . . . . . . . Crush . | . . . . . . . Escape Stasis . | . . . . . . . Rewire . | . . . . . . . Trap . | . . . . . . . Miscellaneous . | . . . . . . . Route ------- -11/Scrapyard -10/Materials -10/Mines -9/Materials (discovered 5 exits: Mat x3 / *Min x2) -9/Mines (discovered 2 exits: Mat / *Exi) -9/Exiles -8/Mines History --------- Turn | Location | Event 13 | -11/Scrapyard | Discovered new exit (range 3) 118 | -11/Scrapyard | Entered Materials 337 | -10/Materials | Build established: Mutant 502 | -10/Materials | Discovered new exit (range 6) 561 | -10/Materials | Entered Mines 562 | -10/Mines | Assembled infested the area 567 | -10/Mines | Assisted by a Guerilla fighting off Assembled 1098 | -10/Mines | Found a damaged Exp. Sensor Array with a note attached 1102 | -10/Mines | Found Prototype Device 1115 | -10/Mines | Learned location of Storage (-7) 1162 | -10/Mines | Learned Materials terminal intel 1265 | -10/Mines | Learned Materials machine intel 1285 | -10/Mines | Assisted by bots powering up and referring to "LRC-V3" 1320 | -10/Mines | Discovered new exit (range 9) 1340 | -10/Mines | Entered Materials 1340 | -9/Materials | Accompanied by 3 allies 1340 | -9/Materials | Evolved 2 slots: Propulsion x1, Utility x1 1341 | -9/Materials | Loaded intel: 55 machine locations 1342 | -9/Materials | Loaded intel: 12 terminal locations 1386 | -9/Materials | Identified exit to Mines 1386 | -9/Materials | Identified exit to Materials 1823 | -9/Materials | Build established: Scavenger-Mutant 1849 | -9/Materials | Lost 3 allies 2133 | -9/Materials | Entered Mines 2195 | -9/Mines | Deemed a non-threat by the Exiles lab entrance 2196 | -9/Mines | Discovered new exit (range 5) 2203 | -9/Mines | Entered Exiles 2242 | -9/Exiles | Met 8R-AWN 2269 | -9/Exiles | Met EX-HEX 2315 | -9/Exiles | Met EX-BIN 2335 | -9/Exiles | Aligned with FarCom system 2336 | -9/Exiles | Given EX-Vault access code 2378 | -9/Exiles | Opened EX-Vault 2416 | -9/Exiles | Warned to stay clear of 0b10 Research branches 2443 | -9/Exiles | Exiles lab attacked by MAIN.C 2522 | -9/Exiles | Discovered new exit (range 10) 2542 | -9/Exiles | Attacked by the Exiles 2544 | -9/Exiles | Entered Mines 2626 | -8/Mines | CL-ANK came to Exiles' defense 2661 | -8/Mines | Core integrity fell below 50% 2661 | -8/Mines | Destroyed CL-ANK 2691 | -8/Mines | Lost 11 parts (1p3n5u2w) 2880 | -8/Mines | Self-destructed Last Messages --------------- 02694_ K-01 Serf collects debris. 02767_ Critical hit (Destroy). 02767_ S-10 Pest destroyed. 02772_ Acquired Flight Unit. 02773_ Acquired 6 matter. 02774_ Acquired Flight Unit. 02775_ Acquired 10 matter. 02775_ Acquired Lgt. Ion Engine. 02776_ Acquired 5 matter. 02780_ The unstable cave ceiling collapses. 02780_ Acquired Lgt. Assault Rifle. 02788_ T-07 Excavator is excavating. 02794_ Searching scrap... 02794_ Found Imp. Ion Engine. 02794_ Found Adv. Targeting Computer. 02794_ Found Hardlight Generator. 02794_ Found 38 Matter. 02795_ Acquired 23 matter. 02797_ T-07 Excavator is excavating. 02814_ K-01 Serf collects debris. Map ----- +----------------------------------------------------+ | ????????????####????????#######?? | | ???????????## ######??## ##? | | ???????????# ## #### #? | | ??#####????# ## #? | | ?## ##???# #? | | ?# ##### #?? | | ?# ##?? | | ?# ##??# | | ?## ## ### ##?# | | ??# ######?## ## | | ??# #???????# | | ??## ##??????## | | ???# ## #??????## """ | | ???### ### ##??????# """ | | ?????# #?### #???????# """ | | ?????# #???# #???????# | | ?????# ##### #???????## | | ?????# #???????## | | ?????# ##### #??????## #### | | ?????# #???# #??????# ##??? | | ?????# #???# ##?????# #???? | | ?????# #??## ##????# ##??? | | ?????# #?## #????## ##?? | | ?????# ### #?????## #?? | | ?????# ## ###????## #?? | | ?????# @ #?????## #?? | | ?????# ### #??????### #?? | | ?????###### ##????????????# #?? | | ??????????####?????????????# #?? | | ???????????????????????????# #?? | | ???????????????????????????# #?? | | ???????????????????????????# #?? | | ???????????????????????????# #?? | | ???????????????????????????# ### | | ???????????????????????????# | | ???????????????????????????# ### | | ???????????????????????????# #?? | | ???????????????????????????# #?? | | ?????????###########???????# #?? | | ?????????# #???????# #?? | | ????????## #???????# #?? | | ????????# = #???????# #?? | | ????????# =! #???????# #?? | | ????????## / #???????# ? | | ????????# % #???????# ? | | ????????# #???????#### | | ????????# #??????????# | | ????????# #??????????# | | ????????## = ! #??????????# | | ?????????# *%[ #??????????# | +----------------------------------------------------+ Best States ------------- Heat Dissipation 28 Energy Generation 14 Energy Capacity 265 Matter Stores 300 Matter Capacity 300 Sight Range 16 Terrain Scan Density 10 Armor Coverage 150 Evasion (%) 63 Recoil Reduction 3 Item Schematics ----------------- None Robot Schematics ------------------ None Fabricated ------------ Nothing Repaired ---------- Nothing Studied --------- Hvy. Assault Rifle | -9/Materials | Hacked Lgt. Treads | -9/Materials | Hacked Particle Cannon | -9/Materials | Hacked Alien Tech Used ----------------- None Achievements -------------- There's More Where That Came From Challenges ------------ None Game ------ Seed DirtyEfficiencyMount Manual? 0 Play Time 00:21:07 Cumulative 222.2 hours Start 2026.01.09 @ 21:13:58 End 2026.01.10 @ 11:10:54 Sessions 3 Manual Loads 0 Difficulty Rogue Special Mode None Game No. 146 Rogue 146 Adventurer 0 Explorer 0 Win Type - Total 18 Types 9/0/3/6/0/0/0/0/0/0 Lore% 71 Gallery% 63 Achievement% 36 Wizard Run 0 Options --------- Layout 0 ASCII 0 Keyboard 1 Movement Numpad Keybinds 0 Fullscreen 1 Font 36/Proggy Map View 76x50 Zoom Use 0% Tactical HUD 1 Map Filters NONE Filters NONE Steam 1 RUN: 00cd18bb-8273-47ec-8ee7-37829f5b93f9